fUSD/lending_fUSD_20260320
["ID","MTS","AMOUNT","RATE_DAILY","PERIOD"]
[408632176,1774022766136,679.29,0.00030136,120]
[408632177,1774022770730,361.79837113,0.00030136,120]
[408632178,1774022771916,36711.57,0.00030136,120]
[408632179,1774022782824,5286.0,0.00030137,120]
[408632180,1774022786629,3677.68,0.00030136,120]
[408632181,1774022795761,500.0,0.00030136,120]
[408632182,1774022809885,387.94965536,0.00030136,120]
[408632183,1774022813517,1310.94,0.00030136,120]
[408632184,1774022821512,5000.0,0.00030137,120]
[408632185,1774022828118,500.0,0.00030136,120]
[408632186,1774022833084,5000.0,0.00030137,120]
[408632187,1774022834896,1250.25,0.00030136,120]
[408632188,1774022857441,5000.0,0.00030137,120]
[408632189,1774022860792,1417.1,0.00030136,120]
[408632190,1774022872625,5000.749,0.00030137,120]
[408632191,1774022873881,500.0,0.00030136,120]
[408632192,1774022874516,500.0,0.00030136,120]
[408632194,1774022885199,500.0,0.00030136,120]
[408632195,1774022885794,500.0,0.00030136,120]
[408632196,1774022898164,500.0,0.00030136,120]
[408632197,1774022898759,500.0,0.00030136,120]
[408632198,1774022903796,5202.66,0.00030136,120]
[408632199,1774022925672,6473.1,0.00030136,120]
[408632200,1774022926715,2681.18,0.00030136,120]
[408632201,1774022928553,8329.82,0.00030136,120]
[408632202,1774022931529,500.0,0.00030136,120]
[408632203,1774022932950,500.0,0.00030136,120]
[408632204,1774022938173,3135.3,0.00030136,120]
[408632205,1774022943057,500.0,0.00030136,120]
[408632206,1774022946724,500.0,0.00030136,120]
[408632207,1774022965998,1100.63,0.00030136,120]
[408632208,1774022984862,62071.92,0.00030136,120]
[408632209,1774022988064,629.77769091,0.00030136,120]
[408632210,1774022992511,35181.92,0.00030136,120]
[408632211,1774022999281,500.0,0.00030136,120]
[408632212,1774022999879,500.0,0.00030136,120]
[408632213,1774023004997,286.63574376,0.00030136,120]
[408632214,1774023008418,3524.45,0.00030136,120]
[408632215,1774023019367,500.0,0.00030136,120]
[408632223,1774023031796,-807.0,9.999e-05,2]
[408632224,1774023031807,-150.0,9.999e-05,2]
[408632225,1774023031817,-125.4199904,9.999e-05,2]
[408632226,1774023031829,-174.5800096,9.999e-05,2]
[408632227,1774023031839,-300.0,9.999e-05,2]
[408632228,1774023031848,-212.4199904,9.999e-05,2]
[408632229,1774023031860,-987.5800096,9.999e-05,2]
[408632230,1774023031870,-300.0,9.999e-05,2]
[408632231,1774023031879,-151.0,0.0001,2]
[408632232,1774023031890,-151.0,0.0001,2]
[408632233,1774023031900,-5804.27316177,0.0001,2]
[408632234,1774023031975,2481.43,0.00030136,120]
[408632235,1774023031996,-2472.89306983,0.0001,2]
[408632236,1774023032008,-601.2627983,0.0001,2]
[408632237,1774023032020,-1109.24731293,0.0001,2]
[408632238,1774023032032,-8045.54526625,0.0001,2]
[408632239,1774023032044,-1988.26860314,0.0001,2]
[408632240,1774023032054,-237.89,0.00010091,2]
[408632241,1774023032063,-118.93586923,0.00010091,2]
[408632246,1774023032104,-336.66413077,0.00010091,2]
[408632248,1774023032114,-262.9905582,0.000109,2]
[408632250,1774023032124,-195.0,0.00010999,2]
[408632252,1774023032134,-300.74190287,0.00010999,2]
[408632254,1774023032145,-255.0,0.00010999,2]
[408632256,1774023032155,-358.0,0.00010999,2]
[408632258,1774023032164,-223.0,0.00010999,2]
[408632260,1774023032174,-884.55287209,0.00011,2]
[408632290,1774023032496,-3477.90574294,0.00011,2]
[408632292,1774023032509,-637.54138497,0.00011,2]
[408632294,1774023032519,-257.93,0.00011268,2]
[408632296,1774023032530,-237.89,0.00011352,2]
[408632297,1774023032540,-262.99055818,0.0001148,2]
[408632298,1774023032551,-161.04,0.00011786,2]
[408632299,1774023032560,-195.15178087,0.00011841,2]
[408632300,1774023032571,-2000.0,0.00011848,2]
[408632301,1774023032580,-2374.68427598,0.00011848,2]
[408632302,1774023032594,-16589.19572402,0.00011848,2]
[408632303,1774023032604,-500.0,0.00011907,2]
[408632304,1774023032613,-500.0,0.00011907,2]
[408632305,1774023032624,-500.0,0.00011907,2]
[408632306,1774023032633,-500.0,0.00011907,2]
[408632307,1774023032643,-500.0,0.00011907,2]
[408632308,1774023032653,-500.0,0.00011907,2]
[408632309,1774023032662,-500.0,0.00011907,2]
[408632310,1774023032673,-160.0,0.00012,2]
[408632311,1774023032684,-500.0,0.00012048,2]
[408632312,1774023032693,-151.0,0.00012049,2]
[408632313,1774023032703,-151.0,0.00012049,2]
[408632314,1774023032712,-151.0,0.00012049,2]
[408632315,1774023032722,-151.0,0.00012049,2]
[408632316,1774023032731,-151.0,0.00012049,2]
[408632317,1774023032756,-151.0,0.00012049,2]
[408632318,1774023032767,-151.0,0.00012049,2]
[408632319,1774023032778,-151.0,0.00012049,2]
[408632320,1774023032788,-151.0,0.00012049,2]
[408632321,1774023032799,-151.0,0.00012049,2]
[408632322,1774023032809,-151.0,0.00012049,2]
[408632323,1774023032820,-258.88775998,0.00012049,2]
[408632324,1774023032830,-151.0,0.00012049,2]
[408632325,1774023032840,-151.0,0.00012049,2]
[408632326,1774023032850,-188.37434726,0.00012049,2]
[408632327,1774023032867,-151.0,0.00012049,2]
[408632328,1774023032877,-151.0,0.00012049,2]
[408632329,1774023032887,-151.0,0.00012049,2]
[408632330,1774023032897,-151.0,0.00012049,2]
[408632331,1774023032907,-151.0,0.00012049,2]
[408632332,1774023032917,-151.0,0.00012049,2]
[408632333,1774023032928,-151.0,0.00012049,2]
[408632334,1774023032938,-278.42140967,0.00012049,2]
[408632335,1774023032947,-1720.8,0.00012055,2]
[408632336,1774023032957,-64396.95,0.00012056,2]
[408632337,1774023032968,-262.99055818,0.00012059,2]
[408632338,1774023032978,-4962.17894627,0.00012081,2]
[408632339,1774023032989,-170.0,0.00012099,2]
[408632340,1774023032999,-28877.8195,0.00012181,2]
[408632341,1774023033009,-1000.0,0.00012181,2]
[408632342,1774023033020,-1069.4222655,0.00012277,2]
[408632343,1774023033030,-20332.1840694,0.00012277,2]
[408632344,1774023033040,-162.6142526,0.00012277,2]
[408632345,1774023033051,-1784.4733905,0.00012277,2]
[408632346,1774023033061,-205.7024135,0.00012277,2]
[408632347,1774023033072,-301.8603462,0.00012277,2]
[408632348,1774023033083,-2872.5985498,0.00012277,2]
[408632349,1774023033092,-151.0,0.00012278,2]
[408632350,1774023033102,-510.36818567,0.00012353,2]
[408632351,1774023033116,-4792.35128706,0.00012381,7]
[408632352,1774023033127,-10607.73057692,0.00012381,7]
[408632353,1774023033137,-500.0,0.00012411,2]
[408632354,1774023033147,-500.0,0.00012411,2]
[408632355,1774023033158,-500.0,0.00012411,2]
[408632356,1774023033168,-169.99,0.00012433,2]
[408632357,1774023033179,-237.89,0.00012614,2]
[408632358,1774023033532,-4962.17894624,0.00012728,2]
[408632359,1774023033543,-150.0,0.000128,2]
[408632360,1774023033553,-165.18,0.00012827,2]
[408632361,1774023033563,-500.0,0.0001284,2]
[408632362,1774023033574,-500.0,0.00012959,2]
[408632363,1774023033585,-1000.0,0.00012959,2]
[408632364,1774023033594,-976.156,0.00013023,2]
[408632365,1774023033604,-908.382,0.00013023,2]
[408632366,1774023033615,-2465.0,0.00013023,2]
[408632367,1774023033624,-6006.0,0.00013023,2]
[408632368,1774023033634,-500.0,0.00013033,2]
[408632369,1774023033643,-979.16666667,0.00013246,2]
[408632370,1774023033652,-160.0,0.00013246,2]
[408632371,1774023033663,-500.0,0.00013301,2]
[408632372,1774023033673,-2500.0,0.00013325,2]
[408632373,1774023033683,-2000.0,0.00013329,2]
[408632374,1774023033693,-393.56145163,0.00013353,2]
[408632375,1774023033706,-106.43854837,0.00013353,2]
[408632376,1774023033716,-3626.75892342,0.00013374,2]
[408632377,1774023033731,-1335.42002282,0.00013374,2]
[408632378,1774023033741,-86.54414347,0.00013388,2]
[408632393,1774023037998,-151.0,0.00012614,2]
[408632394,1774023038008,-500.0,0.00013373,2]
[408632395,1774023038017,-39.62,0.00013373,2]
[408632396,1774023038030,-460.38,0.00013373,2]
[408632397,1774023038040,-367.68861515,0.00013373,2]
[408632398,1774023038050,-10.25968614,0.00013388,2]
[408632399,1774023038062,-903.19617039,0.00013388,2]
[408632400,1774023038072,-3240.0,0.00013425,2]
[408632401,1774023038082,-500.0,0.00013444,2]
[408632402,1774023038092,-1541.0934078,0.00013507,2]
[408632403,1774023038102,-2166.70827286,0.00013524,2]
[408632404,1774023038122,-339.88265974,0.00013524,2]
[408632405,1774023038324,-366.0076172,0.00013524,2]
[408632407,1774023038333,-205.7024135,0.00013528,2]
[408632409,1774023038343,-301.8603462,0.00013529,2]
[408632411,1774023038353,-925.0,0.0001353,5]
[408632413,1774023038362,-1784.4733905,0.00013535,2]
[408632415,1774023038372,-500.0,0.00013539,2]
[408632417,1774023038382,-500.0,0.00013636,2]
[408632419,1774023038392,-1069.4222655,0.00013651,2]
[408632421,1774023038402,-6265.35467437,0.00013651,2]
[408632422,1774023038413,-6275.55825757,0.00013651,2]
[408632470,1774023040242,-237.0684999,0.00013651,2]
[408632471,1774023040252,-741.29048721,0.00013651,2]
[408632472,1774023040521,-300.99857879,0.00013023,2]
[408632473,1774023040777,-665.0,0.00013023,2]
[408632510,1774023043139,-550.010674,0.00013023,2]
[408632511,1774023043153,-1210.07927288,0.00013023,2]
[408632521,1774023045751,-1032.91147433,0.00013023,2]
[408632523,1774023045761,-109.49926423,0.00013651,2]
[408632535,1774023046211,-6940.48138602,0.00013651,2]
[408632536,1774023046221,-364.19606509,0.00013688,2]
[408632539,1774023051084,500.0,0.00030136,120]
[408632540,1774023052355,500.0,0.00030136,120]
[408632541,1774023061946,500.0,0.00030136,120]
[408632542,1774023064316,505.73,0.00030136,120]
[408632543,1774023069626,500.0,0.00030136,120]
[408632544,1774023072789,1256.31,0.00030136,120]
[408632545,1774023075130,1182.26,0.00030136,120]
[408632546,1774023088573,627.17,0.00030136,120]
[408632547,1774023092411,500.0,0.00030136,120]
[408632548,1774023097451,4354.6,0.00030136,120]
[408632549,1774023097654,500.0,0.00030136,120]
[408632550,1774023106089,6735.99,0.00030136,120]
[408632551,1774023113522,5052.16,0.00030136,120]
[408632552,1774023113615,500.0,0.00030136,120]
[408632553,1774023115324,500.0,0.00030136,120]
[408632554,1774023120960,500.0,0.00030136,120]
[408632555,1774023124094,1198.15,0.00030136,120]
[408632556,1774023126891,500.0,0.00030136,120]
[408632557,1774023128101,500.0,0.00030136,120]
[408632558,1774023135207,4985.88,0.00030136,120]
[408632559,1774023135966,500.0,0.00030136,120]
[408632560,1774023139574,1543.86,0.00030136,120]
[408632561,1774023147520,7982.74,0.00030136,120]
[408632562,1774023154946,500.0,0.00030136,120]
[408632563,1774023155870,500.0,0.00030136,120]
[408632564,1774023156208,6203.38,0.00030136,120]
[408632565,1774023158912,500.0,0.00030136,120]
[408632566,1774023159635,500.0,0.00030136,120]
[408632567,1774023159851,500.0,0.00030136,120]
[408632568,1774023168453,757.87,0.00030136,120]
[408632569,1774023175955,500.0,0.00030136,120]
[408632570,1774023177897,1452.3,0.00030136,120]
[408632571,1774023178525,500.0,0.00030136,120]
[408632572,1774023178783,500.0,0.00030136,120]
[408632573,1774023181085,500.0,0.00030136,120]
[408632574,1774023181901,500.0,0.00030136,120]
[408632575,1774023187229,500.0,0.00030136,120]
[408632576,1774023188975,500.0,0.00030136,120]
[408632577,1774023192181,500.0,0.00030136,120]
[408632578,1774023194296,500.0,0.00030136,120]
[408632579,1774023201926,500.0,0.00030136,120]
[408632580,1774023210303,10698.7005,0.00030136,120]
[408632582,1774023222789,1110.17,0.00030136,120]
[408632583,1774023248056,1063.92,0.00030136,120]
[408632584,1774023257313,59485.59,0.00030136,120]
[408632585,1774023258088,194.37830219,0.00030136,120]
[408632586,1774023264684,33716.0,0.00030136,120]
[408632587,1774023279679,3377.6,0.00030136,120]
[408632588,1774023284424,500.0,0.00030136,120]
[408632589,1774023294529,1034.53,0.00030136,120]
[408632590,1774023300444,1008.14,0.00030136,120]
[408632591,1774023324738,1203.97,0.00030136,120]
[408632592,1774023328890,567.53,0.00030136,120]
[408632593,1774023332276,500.0,0.00030136,120]
[408632594,1774023340552,650.99,0.00030136,120]
[408632595,1774023351727,500.0,0.00030136,120]
[408632596,1774023354930,500.0,0.00030136,120]
[408632597,1774023384680,7650.13,0.00030136,120]
[408632598,1774023390190,4778.14,0.00030136,120]
[408632599,1774023410150,5944.91,0.00030136,120]
[408632600,1774023430564,2508.95,0.00030136,120]
[408632601,1774023439595,500.0,0.00030136,120]
[408632602,1774023459619,500.0,0.00030136,120]
[408632603,1774023473879,1358.05,0.00030136,120]
[408632604,1774023490064,500.0,0.00030136,120]
[408632605,1774023493610,500.0,0.00030136,120]
[408632606,1774023501569,32311.17,0.00030136,120]
[408632607,1774023508832,500.0,0.00030136,120]
[408632608,1774023513636,3004.66,0.00030136,120]
[408632609,1774023516498,3236.86,0.00030136,120]
[408632610,1774023539025,500.0,0.00030136,120]
[408632611,1774023544617,500.0,0.00030136,120]
[408632612,1774023559117,500.0,0.00030136,120]
[408632613,1774023569249,1153.8,0.00030136,120]
[408632614,1774023569330,500.0,0.00030136,120]
[408632615,1774023580157,500.0,0.00030136,120]
[408632616,1774023598922,711.58,0.00030136,120]
[408632617,1774023601635,1137.32,0.00030136,120]
[408632618,1774023603462,500.0,0.00030136,120]
[408632619,1774023609575,500.0,0.00030136,120]
[408632620,1774023625093,4579.05,0.00030136,120]
[408632621,1774023634528,7331.37,0.00030136,120]
[408632622,1774023636307,500.0,0.00030136,120]
[408632623,1774023638505,500.0,0.00030136,120]
[408632624,1774023638558,2404.41,0.00030136,120]
[408632625,1774023644130,5697.21,0.00030136,120]
[408632626,1774023653127,500.0,0.00030136,120]
[408632627,1774023659615,601.03,0.00030136,120]
[408632628,1774023660230,500.0,0.00030136,120]
[408632629,1774023668872,500.0,0.00030136,120]
[408632630,1774023669313,4173.16,0.00030136,120]
[408632631,1774023677915,6455.32,0.00030136,120]
[408632632,1774023680651,500.0,0.00030136,120]
[408632633,1774023685429,4841.65,0.00030136,120]
[408632634,1774023694147,500.0,0.00030136,120]
[408632635,1774023695686,1148.23,0.00030136,120]
[408632636,1774023709750,1479.53,0.00030136,120]
[408632637,1774023735968,500.0,0.00030136,120]
[408632638,1774023741373,500.0,0.00030136,120]
[408632639,1774023745679,57007.02,0.00030136,120]
[408632642,1774023752712,500.0,0.00030136,120]
[408632643,1774023754383,30964.87,0.00030136,120]
[408632644,1774023764327,500.0,0.00030136,120]
[408632645,1774023764736,500.0,0.00030136,120]
[408632646,1774023769303,3101.99,0.00030136,120]
[408632647,1774023775704,500.0,0.00030136,120]
[408632648,1774023782918,1105.73,0.00030136,120]
[408632649,1774023783888,500.0,0.00030136,120]
[408632650,1774023796916,500.0,0.00030136,120]
[408632651,1774023819679,500.0,0.00030136,120]
[408632652,1774023829623,500.0,0.00030136,120]
[408632653,1774023841029,1054.77,0.00030136,120]
[408632654,1774023842874,506.47668649,0.00030136,120]
[408632655,1774023864754,4388.26,0.00030136,120]
[408632656,1774023868107,991.42,0.00030136,120]
[408632657,1774023870336,2304.23,0.00030136,120]
[408632658,1774023872825,7025.9,0.00030136,120]
[408632659,1774023879562,500.0,0.00030136,120]
[408632660,1774023879761,5000.0,9.014e-05,25]
[408632661,1774023885457,5459.82,0.00030136,120]
[408632663,1774023921719,577.92,0.00030136,120]
[408632664,1774023924903,293.15,0.000301,120]
[408632665,1774023932958,500.0,0.00030136,120]
[408632666,1774023938277,966.13,0.00030136,120]
[408632667,1774023938522,1133.0,0.00030136,120]
[408632668,1774023965554,54631.73,0.00030136,120]
[408632669,1774023967380,500.0,0.00030136,120]
[408632670,1774023972823,29674.67,0.00030136,120]
[408632671,1774023978930,500.0,0.00030136,120]
[408632672,1774023979559,500.0,0.00030136,120]
[408632673,1774023987628,2972.74,0.00030136,120]
[408632674,1774024000412,500.0,0.00030136,120]
[408632675,1774024005493,500.0,0.00030136,120]
[408632676,1774024009842,500.0,0.00030136,120]
[408632677,1774024011094,1059.65,0.00030136,120]
[408632678,1774024014155,500.0,0.00030136,120]
[408632679,1774024018286,726.29,0.00030136,120]
[408632680,1774024027995,500.0,0.00030136,120]
[408632681,1774024028382,500.0,0.00030136,120]
[408632682,1774024045869,1301.47,0.00030136,120]
[408632683,1774024050829,1098.1,0.00030136,120]
[408632684,1774024052823,500.0,0.00030136,120]
[408632685,1774024091834,500.0,0.00030136,120]
[408632686,1774024098119,4205.41,0.00030136,120]
[408632687,1774024098309,1019.59,0.00030136,120]
[408632688,1774024104673,6733.15,0.00030136,120]
[408632689,1774024118165,500.0,0.00030136,120]
[408632690,1774024118835,5232.33,0.00030136,120]
[408632691,1774024124420,2208.22,0.00030136,120]
[408632693,1774024131550,500.0,0.00030136,120]
[408632694,1774024135266,281.04068491,0.00030136,120]
[408632695,1774024140445,2879.47,0.00030136,120]
[408632696,1774024180720,500.0,0.00030136,120]
[408632697,1774024183254,52355.41,0.00030136,120]
[408632698,1774024194662,500.0,0.00030136,120]
[408632699,1774024199622,2848.88,0.00030136,120]
[408632700,1774024227775,1525.05,0.00030136,120]
[408632710,1774024232020,-164.68,9.014e-05,2]
[408632711,1774024232031,-1200.0,9.499e-05,2]
[408632712,1774024232041,-150.0,9.499e-05,2]
[408632713,1774024232051,-570.68901517,9.5e-05,3]
[408632714,1774024232063,-577.43578661,9.5e-05,3]
[408632715,1774024232075,-1908.35937472,9.5e-05,3]
[408632716,1774024232089,-6817.24270257,9.5e-05,3]
[408632717,1774024232101,-721.974115,9.5e-05,3]
[408632718,1774024232114,-49472.24674866,9.5e-05,3]
[408632719,1774024232126,-10645.44382458,9.5e-05,3]
[408632720,1774024232136,-200.72651588,9.915e-05,2]
[408632721,1774024232146,-5000.0,9.915e-05,2]
[408632722,1774024232155,-317.48704406,9.915e-05,2]
[408632724,1774024232165,-250.0,9.916e-05,2]
[408632725,1774024232175,-9479.14494785,0.0001,2]
[408632726,1774024232185,-1942.57535676,0.0001,2]
[408632727,1774024232195,-2751.31449462,0.0001,2]
[408632728,1774024232205,-12702.83735179,0.0001,2]
[408632729,1774024232215,-1680.0,0.00010449,2]
[408632730,1774024232225,-255.0,0.00010449,2]
[408632731,1774024232235,-269.8552029,0.000107,2]
[408632732,1774024232246,-200.72651586,0.00010758,2]
[408632733,1774024232256,-1033.85625143,0.000108,2]
[408632734,1774024232265,-24497.53860041,0.000108,2]
[408632744,1774024240532,-2512.3783548,0.000108,2]
[408632745,1774024240565,-499.91101752,0.000108,2]
[408632751,1774024245403,500.0,0.00030136,120]
[408632756,1774024245969,-3277.65,0.000108,2]
[408632757,1774024246190,-1043.26462103,0.000108,2]
[408632763,1774024246882,-39617.98054881,0.000108,2]
[408632766,1774024246960,-120084.48105743,0.000108,2]
[408632767,1774024246970,-174.61919141,0.00010893,2]
[408632768,1774024246981,-151.0,0.00010893,2]
[408632769,1774024246991,-2729.342,0.000109,2]
[408632770,1774024247000,-173.558,0.000109,2]
[408632771,1774024247011,-248.84,0.00010909,2]
[408632772,1774024247021,-150.0,0.00011268,2]
[408632773,1774024247030,-200.0,0.00011268,2]
[408632774,1774024247039,-150.0,0.00011494,2]
[408632775,1774024247049,-2025.23,0.00011507,2]
[408632776,1774024247058,-200.72651586,0.000117,2]
[408632777,1774024247068,-172.49818684,0.000118,2]
[408632778,1774024247078,-222.06115947,0.000118,2]
[408632779,1774024247088,-209.45306338,0.000118,2]
[408632780,1774024247098,-217.4435212,0.000118,2]
[408632781,1774024247107,-154.38023746,0.000118,2]
[408632782,1774024247118,-164.034178,0.000118,2]
[408632783,1774024247128,-163.14611281,0.000118,2]
[408632784,1774024247138,-161.58981387,0.000118,2]
[408632785,1774024247147,-152.4796322,0.000118,2]
[408632786,1774024247158,-157.52417593,0.000118,2]
[408632787,1774024247168,-156.56297754,0.000118,2]
[408632788,1774024247178,-158.44216756,0.000118,2]
[408632789,1774024247187,-264.44513205,0.000118,2]
[408632790,1774024247198,-450.26899362,0.000118,2]
[408632791,1774024247207,-487.70560077,0.000118,2]
[408632792,1774024247217,-496.57781059,0.000118,2]
[408632793,1774024247242,-261.51,0.000118,2]
[408632794,1774024247255,-2500.0,0.00011848,2]
[408632795,1774024247266,-3944.24199565,0.00011873,2]
[408632796,1774024247277,-2320.9926604,0.00011873,2]
[408632797,1774024247288,-6874.62015397,0.00011873,2]
[408632798,1774024247299,-6525.5984091,0.000119,2]
[408632799,1774024247309,-500.0,0.00011941,2]
[408632800,1774024247319,-500.0,0.00011941,2]
[408632801,1774024247329,-500.0,0.00011941,2]
[408632802,1774024247339,-151.0,0.00011941,2]
[408632803,1774024247350,-500.0,0.00011941,2]
[408632804,1774024247360,-151.0,0.00011941,2]
[408632805,1774024247370,-500.0,0.00011941,2]
[408632806,1774024247382,-500.0,0.00011941,2]
[408632807,1774024247392,-151.0,0.00011941,2]
[408632808,1774024247402,-500.0,0.00011941,2]
[408632809,1774024247412,-500.0,0.00011941,2]
[408632810,1774024247422,-500.0,0.00011941,2]
[408632811,1774024247433,-500.0,0.00011941,2]
[408632812,1774024247443,-151.0,0.00011941,2]
[408632813,1774024247454,-500.0,0.00011941,2]
[408632814,1774024247464,-500.0,0.00011941,2]
[408632815,1774024247474,-500.0,0.00011941,2]
[408632816,1774024247484,-151.0,0.00011941,2]
[408632817,1774024247495,-500.0,0.00011941,2]
[408632818,1774024247506,-500.0,0.00011941,2]
[408632819,1774024247516,-500.0,0.00011941,2]
[408632820,1774024247526,-151.0,0.00011941,2]
[408632821,1774024247537,-250.0,0.00011941,2]
[408632823,1774024247547,-500.0,0.00011941,2]
[408632825,1774024247557,-500.0,0.00011941,2]
[408632826,1774024247568,-500.0,0.00011941,2]
[408632827,1774024247583,-151.0,0.00011941,2]
[408632828,1774024247594,-500.0,0.00011941,2]
[408632829,1774024247605,-250.0,0.00011941,2]
[408632830,1774024247616,-500.0,0.00011941,2]
[408632831,1774024247627,-250.0,0.00011941,2]
[408632832,1774024247638,-500.0,0.00011941,2]
[408632833,1774024247648,-250.0,0.00011941,2]
[408632834,1774024247659,-250.0,0.00011941,2]
[408632835,1774024247669,-500.0,0.00011941,2]
[408632836,1774024247681,-250.0,0.00011941,2]
[408632837,1774024247691,-500.0,0.00011941,2]
[408632838,1774024247702,-250.0,0.00011941,2]
[408632839,1774024247713,-250.0,0.00011941,2]
[408632840,1774024247724,-500.0,0.00011941,2]
[408632841,1774024247734,-151.0,0.00011941,2]
[408632842,1774024247744,-250.0,0.00011941,2]
[408632843,1774024247753,-500.0,0.00011941,2]
[408632844,1774024247762,-500.0,0.00011941,2]
[408632845,1774024247772,-250.0,0.00011941,2]
[408632846,1774024247781,-250.0,0.00011941,2]
[408632847,1774024247791,-250.0,0.00011941,2]
[408632848,1774024247802,-250.0,0.00011941,2]
[408632849,1774024247812,-250.0,0.00011941,2]
[408632850,1774024247822,-250.0,0.00011941,2]
[408632851,1774024247833,-250.0,0.00011941,2]
[408632852,1774024247844,-250.0,0.00011941,2]
[408632853,1774024247854,-200.0,0.00011941,2]
[408632854,1774024247865,-250.0,0.00011941,2]
[408632855,1774024247875,-250.0,0.00011941,2]
[408632856,1774024247886,-250.0,0.00011941,2]
[408632857,1774024247896,-250.0,0.00011941,2]
[408632858,1774024247907,-250.0,0.00011941,2]
[408632859,1774024247917,-200.0,0.00011941,2]
[408632860,1774024247928,-250.0,0.00011941,2]
[408632861,1774024247945,-250.0,0.00011941,2]
[408632862,1774024247957,-250.0,0.00011941,2]
[408632863,1774024247967,-250.0,0.00011941,2]
[408632864,1774024247979,-151.0,0.00011941,2]
[408632865,1774024247990,-250.0,0.00011941,2]
[408632866,1774024248001,-151.0,0.00011941,2]
[408632867,1774024248014,-250.0,0.00011941,2]
[408632868,1774024248025,-199.04250015,0.00011941,2]
[408632869,1774024248036,-250.0,0.00011941,2]
[408632870,1774024248046,-334.73758888,0.00011941,2]
[408632871,1774024248057,-500.0,0.00011941,2]
[408632872,1774024248067,-151.0,0.00011945,2]
[408632873,1774024248078,-151.96540168,0.00011947,2]
[408632874,1774024248089,-534050.966,0.00011948,2]
[408632875,1774024248099,-500.0,0.00011973,2]
[408632876,1774024248110,-500.0,0.00011973,2]
[408632877,1774024248121,-500.0,0.00011973,2]
[408632878,1774024248136,-448.24083087,0.00011973,2]
[408632879,1774024248147,-500.0,0.00011973,2]
[408632880,1774024248158,-500.0,0.00011973,2]
[408632881,1774024248168,-501.34415765,0.00011973,2]
[408632882,1774024248178,-150.0,0.00012,2]
[408632883,1774024248188,-261.51,0.00012074,2]
[408632884,1774024248198,-3277.2873,0.00012177,2]
[408632885,1774024248209,-1000.0,0.00012177,2]
[408632886,1774024248220,-261.51,0.00012348,2]
[408632887,1774024248230,-698.21115659,0.00012521,2]
[408632888,1774024248241,-178.74260496,0.0001254,2]
[408632889,1774024248254,-3944.24199556,0.00012543,2]
[408632890,1774024248274,-6874.62015393,0.00012543,2]
[408632891,1774024248292,-261.51,0.00012622,2]
[408632892,1774024248303,-2320.99266038,0.00012734,2]
[408632893,1774024248313,-261.54,0.00012896,2]
[408632894,1774024248324,-3944.24199556,0.00013212,2]
[408632895,1774024248334,-6874.62015393,0.00013212,2]
[408632896,1774024248344,-160.0,0.00013233,2]